fUST/lending_fUST_20250305
["ID","MTS","AMOUNT","RATE_DAILY","PERIOD"]
[355409635,1741113044574,-162.427226,0.00046973,120]
[355409636,1741113044583,-151.0,0.00046973,120]
[355409637,1741113044593,-242.954658,0.00046973,14]
[355409639,1741113044602,-242.954658,0.00046973,14]
[355409640,1741113044612,-242.954658,0.00046973,14]
[355409641,1741113044622,-242.954658,0.00046973,14]
[355409643,1741113044631,-242.954658,0.00046973,14]
[355409645,1741113044640,-242.954658,0.00046973,14]
[355409647,1741113044651,-242.954658,0.00046973,14]
[355409649,1741113044660,-242.954658,0.00046973,14]
[355409651,1741113044670,-242.954658,0.00046973,14]
[355409652,1741113044679,-242.954658,0.00046973,14]
[355409653,1741113044689,-151.0,0.00046973,120]
[355409655,1741113044699,-151.0,0.00046973,120]
[355409656,1741113044708,-151.0,0.00046973,120]
[355409658,1741113044717,-151.0,0.00046973,120]
[355409660,1741113044727,-151.0,0.00046973,120]
[355409661,1741113044736,-727.17265052,0.0004699,4]
[355409662,1741113044746,-12222.39705543,0.00047,2]
[355409663,1741113044756,-2000.0,0.00047,42]
[355409664,1741113044766,-150.7,0.00047,120]
[355409665,1741113044776,-150.0,0.00047,120]
[355409666,1741113044786,-151.35533995,0.00047,2]
[355409667,1741113044795,-2000.0,0.00047,120]
[355409668,1741113044805,-159.0,0.00047,90]
[355409669,1741113044816,-150.0,0.00047,2]
[355409670,1741113044826,-7022.4059916,0.00047001,28]
[355409671,1741113044835,-500.0,0.00047016,91]
[355409672,1741113044845,-800.0,0.00047056,30]
[355409673,1741113044855,-864.0,0.00047056,30]
[355409674,1741113044865,-1600.0,0.00047056,30]
[355409675,1741113044874,-323.57255667,0.00047056,30]
[355409676,1741113044884,-34040.3075343,0.00047056,14]
[355409677,1741113044893,-251.98928874,0.00047056,2]
[355409678,1741113044903,-3004.63500665,0.00047056,7]
[355409679,1741113044912,-498.0,0.00047056,7]
[355409680,1741113044921,-28546.62195588,0.00047056,7]
[355409681,1741113044931,-10267.9841376,0.00047056,10]
[355409682,1741113044940,-429.08104799,0.00047056,10]
[355409683,1741113044949,-1104.01833201,0.00047056,10]
[355409684,1741113044959,-10100.84236523,0.00047056,7]
[355409685,1741113044968,-20000.0,0.00047056,2]
[355409686,1741113044978,-150.88149215,0.00047056,2]
[355409687,1741113044987,-150.0,0.00047056,2]
[355409688,1741113044996,-150.5,0.00047056,2]
[355409689,1741113045006,-9999.999999,0.00047056,2]
[355409690,1741113045015,-36311.63230435,0.00047056,20]
[355409691,1741113045235,-397.0,0.00042258,2]
[355409692,1741113045245,-269.85303739,0.00047056,20]
[355409693,1741113045256,-37117.62994845,0.00047056,7]
[355409694,1741113045267,-250.0,0.00047056,10]
[355409695,1741113045277,-250.0,0.00047056,10]
[355409696,1741113045287,-250.0,0.00047056,10]
[355409697,1741113045297,-390.592426,0.00047056,10]
[355409698,1741113045307,-161.11966886,0.00047057,2]
[355409699,1741113045322,-277.40872964,0.00047058,30]
[355409700,1741113045332,-201.983338,0.00047058,120]
[355409701,1741113045344,-151.0,0.00047058,2]
[355409702,1741113045354,-151.0,0.00047058,2]
[355409704,1741113045364,-212.797633,0.00047058,2]
[355409705,1741113045373,-151.0,0.00047058,120]
[355409706,1741113045384,-158.70626,0.00047058,120]
[355409707,1741113045394,-151.0,0.00047058,120]
[355409708,1741113045404,-151.0,0.00047058,120]
[355409710,1741113045414,-151.0,0.00047058,120]
[355409711,1741113045424,-223.18988,0.00047058,120]
[355409712,1741113045434,-156.690233,0.00047058,2]
[355409713,1741113045444,-152.2,0.000471,30]
[355409714,1741113045454,-500.0,0.00047116,91]
[355409715,1741113045464,-187.78,0.00047123,2]
[355409716,1741113045474,-151.0,0.00047123,120]
[355409717,1741113045484,-189.038656,0.00047123,120]
[355409718,1741113045494,-189.038656,0.00047123,120]
[355409719,1741113045507,-151.0,0.00047123,120]
[355409720,1741113045516,-151.0,0.00047123,120]
[355409721,1741113045526,-242.954658,0.00047123,14]
[355409722,1741113045535,-242.954658,0.00047123,14]
[355409723,1741113045546,-151.0,0.00047123,120]
[355409725,1741113045556,-503.24,0.00047123,120]
[355409726,1741113045569,-500.0,0.00047123,120]
[355409727,1741113045581,-500.0,0.00047123,120]
[355409728,1741113045591,-500.0,0.00047123,120]
[355409729,1741113045602,-1901.98,0.00047123,120]
[355409730,1741113045612,-500.0,0.00047123,120]
[355409731,1741113045621,-500.0,0.00047123,120]
[355409733,1741113045631,-500.0,0.00047123,120]
[355409735,1741113045640,-2331.66,0.00047123,120]
[355409736,1741113045650,-500.0,0.00047123,120]
[355409738,1741113045659,-500.0,0.00047123,120]
[355409740,1741113045669,-1673.68,0.00047123,6]
[355409741,1741113045679,-500.0,0.00047123,120]
[355409742,1741113045690,-500.0,0.00047123,120]
[355409744,1741113045700,-899.93,0.00047123,120]
[355409746,1741113045709,-955.17,0.00047123,120]
[355409747,1741113045719,-501.0,0.00047123,120]
[355409748,1741113045728,-500.0,0.00047123,120]
[355409749,1741113045738,-548.13,0.00047123,120]
[355409750,1741113045748,-1258.02,0.00047123,120]
[355409751,1741113045758,-500.0,0.00047123,120]
[355409753,1741113045768,-1825.82,0.00047123,120]
[355409755,1741113045777,-1535.59,0.00047123,120]
[355409756,1741113045787,-2459.85,0.00047123,120]
[355409758,1741113045797,-19961.22571292,0.00047123,7]
[355409761,1741113045986,-500.0,0.000186,2]
[355409762,1741113045996,-1000.0,0.00024079,2]
[355409763,1741113046006,-1243.38561492,0.0003197,2]
[355409764,1741113046015,-499.33991108,0.00034098,5]
[355409765,1741113046027,-0.66008892,0.00034098,5]
[355409766,1741113046036,-397.0,0.00042258,2]
[355409767,1741113046046,-500.0,0.00043835,120]
[355409769,1741113046055,-500.0,0.00043835,120]
[355409770,1741113046067,-397.0,0.00045258,2]
[355409771,1741113046076,-8171.60991108,0.00047123,7]
[355409772,1741113046092,-458.19853514,0.00047123,7]
[355409773,1741113046104,-799.99939,0.00047123,7]
[355409776,1741113276755,1500.0,0.00047079,120]
[355409806,1741114217813,1176.0,0.00047092,57]
[355409832,1741114232104,-195.2864292,0.00031643,2]
[355409834,1741114232113,-2006.0377677,0.00031705,120]
[355409836,1741114232123,-180.689601,0.00031793,2]
[355409838,1741114232132,-1393.1270024,0.0003187,2]
[355409840,1741114232142,-2190.50451299,0.0003187,2]
[355409842,1741114232151,-565.47091804,0.000319,6]
[355409844,1741114232160,-197.99734547,0.0003197,2]
[355409846,1741114232170,-12872.39705543,0.0003197,2]
[355409848,1741114232179,-160.35,0.0003205,2]
[355409850,1741114232188,-1136.656613,0.0003206,2]
[355409852,1741114232198,-264.27366,0.00032171,2]
[355409854,1741114232207,-155.25,0.000327,31]
[355409856,1741114232216,-155.25,0.000327,31]
[355409858,1741114232225,-250.0,0.00033402,2]
[355409860,1741114232234,-175.25,0.00033402,2]
[355409862,1741114232243,-250.0,0.00033784,2]
[355409864,1741114232253,-400.553504,0.00033943,2]
[355409866,1741114232262,-24900.0,0.00034393,2]
[355409868,1741114232272,-6427.21898611,0.000346,2]
[355409870,1741114232282,-451.33195812,0.000347,5]
[355409871,1741114232291,-360.2453854,0.00034775,5]
[355409872,1741114232299,-500.0,0.00034775,5]
[355409873,1741114232308,-500.0,0.00034775,5]
[355409874,1741114232317,-463.89569932,0.00035017,5]
[355409875,1741114232326,-500.0,0.0003589,2]
[355409876,1741114232335,-1534.19353207,0.000362,98]
[355409877,1741114232344,-155.25,0.000366,31]
[355409878,1741114232353,-155.25,0.000366,31]
[355409879,1741114232362,-155.25,0.000366,31]
[355409880,1741114232371,-155.25,0.000366,31]
[355409881,1741114232380,-10000.0,0.00037734,2]
[355409882,1741114232390,-200.35224631,0.00038356,2]
[355409883,1741114232399,-172.404,0.00038615,52]
[355409884,1741114232408,-500.0,0.00040254,5]
[355409885,1741114232417,-155.25,0.000405,31]
[355409886,1741114232425,-155.25,0.000405,31]
[355409887,1741114232434,-155.25,0.000405,31]
[355409888,1741114232444,-155.25,0.000405,31]
[355409889,1741114232453,-500.0,0.00041211,2]
[355409890,1741114232462,-241.17,0.00042555,2]
[355409892,1741114232472,-1954.0,0.00042555,2]
[355409893,1741114232481,-539.0,0.00042555,2]
[355409895,1741114232491,-2276.0,0.00042555,2]
[355409898,1741114232500,-397.0,0.00042555,2]
[355409899,1741114232509,-300.0,0.000432,23]
[355409901,1741114232519,-20130.27,0.00043249,10]
[355409903,1741114232528,-1576.73613248,0.0004325,3]
[355409905,1741114232538,-24156.33,0.00043259,10]
[355409908,1741114232548,-15201.16,0.00043269,10]
[355409909,1741114232557,-28987.59,0.00043269,10]
[355409912,1741114232567,-1576.73613248,0.0004327,3]
[355409913,1741114232576,-309.65684704,0.00043279,31]
[355409915,1741114232585,-500.0,0.00043279,31]
[355409917,1741114232595,-500.0,0.00043279,31]
[355409919,1741114232604,-500.0,0.00043279,31]
[355409921,1741114232613,-660.17327926,0.00043279,2]
[355409923,1741114232623,-660.17327926,0.00043279,2]
[355409925,1741114232632,-500.0,0.00043279,31]
[355409927,1741114232641,-660.17327926,0.00043279,2]
[355409928,1741114232651,-462.79633705,0.00043279,31]
[355409929,1741114232661,-660.17327926,0.00043279,2]
[355409930,1741114232671,-660.17327926,0.00043279,2]
[355409931,1741114232680,-660.17327926,0.00043279,2]
[355409932,1741114232690,-660.17327926,0.00043279,2]
[355409933,1741114232700,-660.17327926,0.00043279,2]
[355409934,1741114232709,-660.17327926,0.00043279,2]
[355409935,1741114232719,-660.17327926,0.00043279,2]
[355409936,1741114232728,-660.17327926,0.00043279,2]
[355409937,1741114232737,-660.17327926,0.00043279,2]
[355409938,1741114232747,-660.17327926,0.00043279,2]
[355409939,1741114232756,-660.17327926,0.00043279,2]
[355409940,1741114232766,-660.17327926,0.00043279,2]
[355409941,1741114232776,-660.17327926,0.00043279,2]
[355409942,1741114232785,-660.17327926,0.00043279,2]
[355409943,1741114232795,-660.17327926,0.00043279,2]
[355409944,1741114232805,-660.17327926,0.00043279,2]
[355409945,1741114232814,-660.17327926,0.00043279,2]
[355409946,1741114232826,-660.17327926,0.00043279,2]
[355409947,1741114232836,-660.17327926,0.00043279,2]
[355409948,1741114232845,-660.17327926,0.00043279,2]
[355409949,1741114232856,-660.17327926,0.00043279,2]
[355409950,1741114232866,-660.17327926,0.00043279,2]
[355409951,1741114232877,-660.17327926,0.00043279,2]
[355409952,1741114232886,-660.17327926,0.00043279,2]
[355409953,1741114232895,-660.17327926,0.00043279,2]
[355409954,1741114232905,-660.17327926,0.00043279,2]
[355409955,1741114232915,-660.17327926,0.00043279,2]
[355409956,1741114232926,-660.17327926,0.00043279,2]
[355409957,1741114232936,-660.17327926,0.00043279,2]
[355409958,1741114232946,-660.17327926,0.00043279,2]
[355409959,1741114232955,-660.17327926,0.00043279,2]
[355409960,1741114232966,-660.17327926,0.00043279,2]
[355409961,1741114232975,-660.17327926,0.00043279,2]
[355409962,1741114232984,-660.17327926,0.00043279,2]
[355409963,1741114232994,-660.17327926,0.00043279,2]
[355409964,1741114233006,-660.17327926,0.00043279,2]
[355409965,1741114233016,-660.17327926,0.00043279,2]
[355409966,1741114233025,-660.17327926,0.00043279,2]
[355409967,1741114233037,-660.17327926,0.00043279,2]
[355409968,1741114233047,-660.17327926,0.00043279,2]
[355409969,1741114233057,-660.17327926,0.00043279,2]
[355409970,1741114233070,-660.17327926,0.00043279,2]
[355409971,1741114233080,-660.17327926,0.00043279,2]
[355409972,1741114233090,-660.17327926,0.00043279,2]
[355409973,1741114233100,-660.17327926,0.00043279,2]
[355409974,1741114233112,-660.17327926,0.00043279,2]
[355409975,1741114233122,-660.17327926,0.00043279,2]
[355409976,1741114233132,-660.17327926,0.00043279,2]
[355409977,1741114233142,-643.66894729,0.00043279,2]
[355409978,1741114233152,-643.66894729,0.00043279,2]
[355409979,1741114233162,-643.66894729,0.00043279,2]
[355409980,1741114233172,-643.66894729,0.00043279,2]
[355409981,1741114233182,-643.66894729,0.00043279,2]
[355409982,1741114233192,-643.66894729,0.00043279,2]
[355409983,1741114233202,-643.66894729,0.00043279,2]
[355409984,1741114233212,-643.66894729,0.00043279,2]
[355409985,1741114233221,-643.66894729,0.00043279,2]
[355409986,1741114233231,-643.66894729,0.00043279,2]
[355409987,1741114233241,-643.66894729,0.00043279,2]
[355409988,1741114233251,-643.66894729,0.00043279,2]
[355409989,1741114233261,-643.66894729,0.00043279,2]
[355409990,1741114233271,-643.66894729,0.00043279,2]
[355409991,1741114233282,-643.66894729,0.00043279,2]
[355409992,1741114233292,-643.66894729,0.00043279,2]
[355409993,1741114233302,-643.66894729,0.00043279,2]
[355409994,1741114233312,-643.66894729,0.00043279,2]
[355409995,1741114233325,-643.66894729,0.00043279,2]
[355409996,1741114233336,-643.66894729,0.00043279,2]
[355409997,1741114233346,-643.66894729,0.00043279,2]
[355409998,1741114233356,-643.66894729,0.00043279,2]
[355409999,1741114233366,-643.66894729,0.00043279,2]
[355410000,1741114233377,-643.66894729,0.00043279,2]
[355410001,1741114233387,-643.66894729,0.00043279,2]
[355410002,1741114233397,-643.66894729,0.00043279,2]
[355410003,1741114233407,-643.66894729,0.00043279,2]
[355410004,1741114233416,-643.66894729,0.00043279,2]
[355410005,1741114233426,-643.66894729,0.00043279,2]
[355410006,1741114233436,-643.66894728,0.00043279,2]
[355410007,1741114233447,-643.66894728,0.00043279,2]
[355410008,1741114233457,-643.66894728,0.00043279,2]
[355410009,1741114233468,-643.66894728,0.00043279,2]
[355410010,1741114233478,-643.66894728,0.00043279,2]
[355410011,1741114233488,-643.66894728,0.00043279,2]
[355410012,1741114233498,-643.66894728,0.00043279,2]
[355410013,1741114233509,-1576.73613248,0.0004328,3]
[355410014,1741114233519,-999.0,0.00043341,120]
[355410015,1741114233529,-675.83207943,0.00043373,2]
[355410016,1741114233539,-189.58583207,0.00043373,2]
[355410017,1741114233549,-7883.6806624,0.00043408,3]
[355410018,1741114233559,-288.23210325,0.00043417,31]
[355410019,1741114233569,-500.0,0.00043417,31]
[355410020,1741114233579,-500.0,0.00043417,31]
[355410021,1741114233588,-251.02932297,0.00043417,31]
[355410022,1741114233598,-647.09019693,0.00043417,31]
[355410023,1741114233608,-500.0,0.00043417,31]
[355410024,1741114233618,-500.0,0.00043417,31]
[355410025,1741114233627,-428.78825508,0.00043417,31]
[355410026,1741114233637,-500.0,0.00043417,31]
[355410027,1741114233647,-500.0,0.00043417,31]
[355410028,1741114233657,-222000.0,0.00043418,2]
[355410029,1741114233667,-500.0,0.00043473,10]
[355410030,1741114233676,-501.53209753,0.00043473,10]
[355410031,1741114233686,-150.0,0.00043485,30]
[355410032,1741114233696,-319.56,0.000435,30]
[355410033,1741114233706,-155.96,0.000435,30]
[355410034,1741114233716,-164.5,0.000435,30]
[355410035,1741114233725,-4293.48,0.000435,30]
[355410036,1741114233735,-428.48,0.000435,30]
[355410037,1741114233744,-252.27,0.000435,30]
[355410038,1741114233754,-940.71817132,0.00043543,30]
[355410039,1741114233764,-262.72625,0.00043613,120]
[355410040,1741114233774,-6427.21898609,0.00043786,28]
[355410041,1741114233783,-6306.94452992,0.00043825,3]
[355410042,1741114233793,-500.0,0.00043835,120]
[355410043,1741114233803,-500.0,0.00043835,120]
[355410044,1741114233813,-500.0,0.00043835,120]
[355410045,1741114233825,-522.04425996,0.00043835,120]
[355410046,1741114233834,-500.0,0.00043835,120]
[355410047,1741114233844,-500.0,0.00043835,120]
[355410048,1741114233855,-500.0,0.00043835,120]
[355410049,1741114233865,-500.0,0.00043835,120]
[355410050,1741114233875,-500.0,0.00043835,120]
[355410051,1741114233884,-3000.0,0.00043835,120]
[355410052,1741114233894,-150.0,0.00043835,2]
[355410053,1741114233903,-500.0,0.00043835,120]
[355410054,1741114233912,-500.0,0.00043835,120]
[355410055,1741114233923,-500.0,0.00043835,120]
[355410056,1741114233936,-500.0,0.00043835,120]
[355410057,1741114233946,-599.93081798,0.00043835,120]
[355410058,1741114233956,-500.0,0.00043835,120]
[355410059,1741114233967,-500.0,0.00043835,120]
[355410060,1741114233977,-500.0,0.00043835,120]
[355410061,1741114233987,-500.0,0.00043835,120]
[355410062,1741114233997,-500.0,0.00043835,120]
[355410063,1741114234008,-502.15212112,0.00043835,120]
[355410064,1741114234018,-500.0,0.00043835,120]
[355410065,1741114234028,-500.0,0.00043835,120]
[355410066,1741114234037,-500.0,0.00043835,120]
[355410067,1741114234047,-500.0,0.00043835,120]
[355410068,1741114234057,-500.0,0.00043835,120]
[355410069,1741114234069,-500.0,0.00043835,120]
[355410070,1741114234079,-269.5705671,0.00043835,120]
[355410071,1741114234090,-500.0,0.00043835,120]
[355410072,1741114234101,-500.0,0.00043835,5]
[355410073,1741114234111,-500.0,0.00043835,120]
[355410074,1741114234121,-500.0,0.00043835,120]
[355410075,1741114234131,-500.0,0.00043835,120]
[355410076,1741114234141,-502.61872391,0.00043835,120]
[355410077,1741114234151,-500.0,0.00043835,120]
[355410078,1741114234161,-500.0,0.00043835,120]
[355410079,1741114234171,-502.3882834,0.00043835,120]
[355410080,1741114234181,-500.0,0.00043835,120]
[355410081,1741114234191,-500.0,0.00043835,120]
[355410082,1741114234201,-500.0,0.00043835,120]
[355410083,1741114234211,-500.0,0.00043835,120]
[355410084,1741114234221,-500.0,0.00043835,120]
[355410085,1741114234231,-339.29053433,0.00043835,120]
[355410086,1741114234240,-500.0,0.00043835,120]
[355410087,1741114234250,-500.0,0.00043835,120]
[355410088,1741114234261,-500.0,0.00043835,120]
[355410089,1741114234271,-500.0,0.00043835,120]
[355410090,1741114234280,-500.0,0.00043835,120]
[355410091,1741114234290,-500.0,0.00043835,120]
[355410092,1741114234299,-500.0,0.00043835,120]
[355410093,1741114234308,-500.0,0.00043835,120]
[355410094,1741114234319,-295.74670447,0.00043835,120]
[355410095,1741114234340,-204.25329553,0.00043835,120]
[355410096,1741114234350,-334.1257478,0.00043835,120]
[355410097,1741114234367,-165.8742522,0.00043835,120]
[355410098,1741114234376,-500.0,0.00043835,120]
[355410099,1741114234386,-500.0,0.00043835,120]
[355410100,1741114234396,-86.52574781,0.00043835,120]
[355410101,1741114234407,-413.47425219,0.00043835,120]
[355410102,1741114234416,-500.0,0.00043835,2]
[355410103,1741114234426,-600.0,0.00043835,2]
[355410104,1741114234436,-500.0,0.00043835,120]
[355410105,1741114234445,-500.0,0.00043835,120]
[355410106,1741114234455,-500.0,0.00043835,120]
[355410107,1741114234464,-500.0,0.00043835,120]
[355410108,1741114234474,-500.0,0.00043835,120]
[355410109,1741114234485,-500.0,0.00043835,120]
[355410110,1741114234495,-500.0,0.00043835,120]
[355410111,1741114234504,-500.0,0.00043835,120]
[355410112,1741114234514,-500.0,0.00043835,120]
[355410113,1741114234523,-500.0,0.00043835,120]
[355410114,1741114234533,-500.0,0.00043835,120]
[355410115,1741114234543,-500.0,0.00043835,120]
[355410116,1741114234552,-2499.99,0.00043835,120]
[355410117,1741114234562,-500.0,0.00043835,120]
[355410118,1741114234571,-500.0,0.00043835,120]
[355410119,1741114234581,-500.0,0.00043835,120]
[355410120,1741114234591,-500.0,0.00043835,120]
[355410121,1741114234600,-500.0,0.00043835,120]
[355410122,1741114234609,-507.1778751,0.00043835,120]
[355410123,1741114234618,-500.0,0.00043835,120]
[355410124,1741114234628,-500.0,0.00043835,120]
[355410125,1741114234637,-500.0,0.00043835,120]
[355410126,1741114234647,-500.0,0.00043835,120]
[355410127,1741114234657,-500.0,0.00043835,120]
[355410128,1741114234666,-500.0,0.00043835,120]
[355410129,1741114234676,-500.0,0.00043835,120]
[355410130,1741114234685,-500.0,0.00043835,120]
[355410131,1741114234695,-500.0,0.00043835,120]
[355410132,1741114234704,-500.0,0.00043835,120]
[355410133,1741114234714,-500.0,0.00043835,120]
[355410134,1741114234723,-500.0,0.00043835,120]
[355410135,1741114234733,-500.0,0.00043835,120]
[355410136,1741114234743,-500.0,0.00043835,120]
[355410137,1741114234753,-500.0,0.00043835,120]
[355410138,1741114234762,-500.0,0.00043835,120]
[355410139,1741114234772,-500.0,0.00043835,7]
[355410140,1741114234781,-500.0,0.00043835,120]
[355410141,1741114234791,-176.51969941,0.00043835,120]
[355410142,1741114234800,-500.0,0.00043835,120]
[355410143,1741114234810,-500.0,0.00043835,120]
[355410144,1741114234820,-500.0,0.00043835,120]
[355410145,1741114234830,-500.0,0.00043835,120]
[355410146,1741114234841,-500.0,0.00043835,120]
[355410147,1741114234851,-495.95678456,0.00043835,120]
[355410149,1741114237971,-362.10571307,0.00043473,10]
[355410155,1741114238032,-137.89428693,0.00043473,10]
[355410156,1741114238041,-4.04321544,0.00043835,120]
[355410159,1741114238051,-500.0,0.00043835,120]
[355410160,1741114238061,-502.75,0.00043835,120]
[355410162,1741114238072,-500.0,0.00043835,120]
[355410183,1741114238212,-500.0,0.00043835,120]
[355410185,1741114238222,-500.0,0.00043835,120]
[355410187,1741114238231,-500.0,0.00043835,120]
[355410189,1741114238240,-1000.98215151,0.00043835,5]
[355410190,1741114238250,-500.0,0.00043835,120]
[355410191,1741114238259,-500.0,0.00043835,120]
[355410192,1741114238269,-500.0,0.00043835,120]
[355410193,1741114238278,-500.0,0.00043835,120]
[355410194,1741114238288,-500.0,0.00043835,120]
[355410195,1741114238297,-500.0,0.00043835,120]
[355410196,1741114238307,-500.0,0.00043835,120]
[355410197,1741114238316,-500.0,0.00043835,120]
[355410198,1741114238326,-500.0,0.00043835,120]
[355410199,1741114238335,-499.7178601,0.00043835,120]
[355410200,1741114238344,-1787.9,0.00043835,120]
[355410201,1741114238353,-500.0,0.00043835,120]
[355410202,1741114238363,-500.0,0.00043835,120]
[355410203,1741114238372,-500.0,0.00043835,120]
[355410204,1741114238381,-509.62868978,0.00043835,120]
[355410205,1741114238391,-500.0,0.00043835,120]
[355410206,1741114238401,-500.0,0.00043835,120]
[355410207,1741114238411,-500.0,0.00043835,120]
[355410208,1741114238420,-500.0,0.00043835,120]
[355410209,1741114238429,-500.0,0.00043835,120]
[355410210,1741114238439,-500.0,0.00043835,120]
[355410211,1741114238448,-500.0,0.00043835,120]
[355410212,1741114238457,-500.0,0.00043835,120]
[355410213,1741114238466,-500.0,0.00043835,120]
[355410214,1741114238475,-500.0,0.00043835,120]
[355410215,1741114238484,-500.0,0.00043835,120]
[355410216,1741114238493,-500.0,0.00043835,120]
[355410217,1741114238502,-500.0,0.00043835,120]
[355410218,1741114238511,-500.0,0.00043835,120]
[355410219,1741114238520,-500.0,0.00043835,120]
[355410220,1741114238530,-527.36,0.00043835,120]
[355410221,1741114238540,-500.0,0.00043835,120]
[355410222,1741114238551,-500.0,0.00043835,120]
[355410223,1741114238561,-500.0,0.00043835,120]
[355410224,1741114238573,-500.0,0.00043835,120]
[355410225,1741114238583,-500.0,0.00043835,120]
[355410226,1741114238592,-500.0,0.00043835,120]
[355410227,1741114238601,-500.0,0.00043835,120]
[355410228,1741114238611,-558.59070108,0.00043835,120]
[355410229,1741114238621,-500.0,0.00043835,120]
[355410230,1741114238630,-511.2011299,0.00043835,120]
[355410231,1741114238639,-500.0,0.00043835,120]
[355410232,1741114238649,-500.0,0.00043835,120]
[355410233,1741114238658,-500.0,0.00043835,120]
[355410234,1741114238668,-500.0,0.00043835,15]
[355410235,1741114238678,-500.0,0.00043835,120]
[355410236,1741114238687,-500.0,0.00043835,120]
[355410237,1741114238697,-500.0,0.00043835,120]
[355410238,1741114238706,-500.0,0.00043835,120]
[355410239,1741114238715,-500.0,0.00043835,120]
[355410240,1741114238724,-500.0,0.00043835,120]
[355410241,1741114238734,-502.79751058,0.00043835,120]
[355410242,1741114238743,-500.0,0.00043835,120]
[355410243,1741114238754,-500.0,0.00043835,120]
[355410244,1741114238764,-500.0,0.00043835,120]
[355410245,1741114238773,-500.0,0.00043835,120]
[355410246,1741114238783,-711.54,0.00043835,120]
[355410247,1741114238792,-208.17651742,0.00043835,120]
[355410248,1741114238801,-500.0,0.00043835,120]
[355410249,1741114238810,-529.28,0.00043835,120]
[355410250,1741114238820,-500.00000005,0.00043835,120]
[355410251,1741114238829,-500.0,0.00043835,120]
[355410252,1741114238838,-500.0,0.00043835,120]
[355410253,1741114238847,-500.0,0.00043835,120]
[355410254,1741114238856,-500.0,0.00043835,120]
[355410255,1741114238865,-500.0,0.00043835,120]
[355410256,1741114238875,-500.0,0.00043835,120]
[355410257,1741114238884,-500.0,0.00043835,120]
[355410258,1741114238895,-500.0,0.00043835,120]
[355410259,1741114238911,-500.0,0.00043835,120]
[355410260,1741114238925,-500.0,0.00043835,120]
[355410261,1741114238936,-607.22,0.00043835,120]
[355410262,1741114238946,-500.0,0.00043835,120]
[355410263,1741114238956,-500.0,0.00043835,120]
[355410264,1741114238967,-500.0,0.00043835,120]
[355410265,1741114238976,-500.0,0.00043835,120]
[355410266,1741114238986,-439.56225908,0.00043835,120]
[355410267,1741114238996,-500.0,0.00043835,120]
[355410268,1741114239006,-500.0,0.00043835,120]
[355410269,1741114239016,-500.0,0.00043835,120]
[355410270,1741114239026,-500.0,0.00043835,120]
[355410271,1741114239036,-515.7,0.00043835,120]
[355410272,1741114239046,-500.0,0.00043835,120]
[355410273,1741114239055,-500.0,0.00043835,120]
[355410274,1741114239065,-500.0,0.00043835,120]
[355410275,1741114239077,-500.0,0.00043835,120]
[355410276,1741114239087,-581.05,0.00043835,120]
[355410277,1741114239098,-500.0,0.00043835,120]
[355410278,1741114239107,-500.0,0.00043835,120]
[355410279,1741114239117,-516.82,0.00043835,120]
[355410280,1741114239126,-500.0,0.00043835,120]
[355410281,1741114239136,-1324.99,0.00043835,6]
[355410282,1741114239146,-500.0,0.00043835,120]
[355410283,1741114239156,-500.0,0.00043835,120]